Cogmind - Beta 12 @@@ ROGUE MODE // 2023.03.20 @ 23:30:26 Player: Benight Result: Destroyed by G-34 Mercenary with Small Laser Performance ------------- Evolutions (1) 500 Regions Visited (3) 600 Robots Destroyed (13) 65 Value Destroyed (350) 350 Prototype IDs (1) 20 Alien Tech Used (0) 0 Bonus (200) 200 TOTAL SCORE: 1735 Bonus ------- Pacifist 200 Cogmind --------- Core Integrity 0/400 Matter 233/300 Energy 51/100 System Corruption 0% Temperature Danger (403) Movement Core (750) Ox14 Location -9/Materials Parts ------- > --- POWER (1) -------- (None) > --- PROPULSION (4) --- (None) > --- UTILITY (2) ------ High-capacity Storage Unit Improved Power Shielding > --- WEAPON (2) ------- Small Laser > --- INVENTORY (20) --- Deuterium Engine Deuterium Engine Heat Sink Small Storage Unit Small Matter Pod (50) Improved Power Shielding Improved Power Shielding Improved Power Shielding Light Armor Plating Hacking Suite Light EM Pulse Cannon Peak State ------------ > --- POWER ------------ Deuterium Engine > --- PROPULSION ------- Light Treads Light Treads Aluminum Leg Aluminum Leg > --- UTILITY ---------- High-capacity Storage Unit Salvage Targeting Computer > --- WEAPON ----------- EM Shotgun Shotgun > --- INVENTORY -------- Deuterium Engine Deuterium Engine Deuterium Engine Heat Sink Small Storage Unit Improved Power Shielding Improved Power Shielding Improved Power Shielding Improved Power Shielding Light Armor Plating Hacking Suite EM Pulse Gun Improved EM Shotgun Medium Laser Small Laser Light EM Pulse Cannon Light EM Pulse Cannon Beam Cannon Light Cannon Plasma Cutter [Rating: 18] Favorites ----------- Power Deuterium Engine Engine Deuterium Engine Propulsion Aluminum Leg Treads Light Treads Leg Aluminum Leg Utility Salvage Targeting Computer Storage High-capacity Storage Unit Processor Salvage Targeting Computer Protection Improved Power Shielding Weapon EM Pulse Gun Energy Gun EM Pulse Gun Energy Cannon Beam Cannon Ballistic Gun Shotgun Ballistic Cannon Light Cannon Special Weapon Plasma Cutter Build | -11 -10 -10 -9 ------- Run | Jun Mat Min Mat Slots Evolved 2 | . . . 2 Power . | . . . . Propulsion 2 | . . . 2 Utility . | . . . . Weapon . | . . . . Parts Attached 23 | 6 1 1 15 Power 3 | 1 . . 2 Engine 3 | 1 . . 2 Core . | . . . . Reactor . | . . . . Propulsion 4 | 2 . . 2 Treads 2 | . . . 2 Leg 2 | 2 . . . Wheel . | . . . . Hover . | . . . . Flight . | . . . . Utility 4 | 1 1 1 1 Device . | . . . . Storage 2 | 1 . 1 . Processor 1 | . 1 . . Hackware . | . . . . Protection 1 | . . . 1 Artifact . | . . . . Weapon 12 | 2 . . 10 Energy Gun 7 | 2 . . 5 Energy Cannon 2 | . . . 2 Ballistic Gun 1 | . . . 1 Ballistic Cannon 1 | . . . 1 Launcher . | . . . . Special Weapon 1 | . . . 1 Impact Weapon . | . . . . Slashing Weapon . | . . . . Piercing Weapon . | . . . . Special Melee Weapon . | . . . . Unidentified Prototypes 1 | . . . 1 Parts Lost 17 | . . . 17 Power 2 | . . . 2 Propulsion 4 | . . . 4 Utility . | . . . . Weapon 11 | . . . 11 Highest Loss Streak 11 | . . . 11 To Critical Strikes . | . . . . Average Slot Usage (%) 94 | . 90 100 93 Engine 11 | . 14 14 10 Treads 14 | . . . 18 Leg 21 | . 28 28 19 Storage 11 | . 14 14 11 Processor 10 | . 5 14 10 Energy Gun 15 | . 28 28 11 Ballistic Gun 6 | . . . 8 Naked Turns . | . . . . Heaviest Build 55 | 12 12 47 55 Greatest Support 40 | 20 20 20 40 Greatest Overweight (x) 2 | 2 . 2 2 Average Overweight (x) 1 | . . . 1 Largest Inventory Capacity 20 | 8 8 20 20 Average Capacity 17 | 7 8 15 20 Most Carried 20 | 6 8 10 20 Average Carried 12 | 3 7 8 15 Final Capacity 20 | 8 8 20 20 Final Carried 11 | 6 7 10 11 Class Distribution -------------------- 100% | Mutant Dominant Class ---------------- Mutant | -10/Materials Mutant | -10/Mines Mutant | -9/Materials Resources | -11 -10 -10 -9 ----------- Run | Jun Mat Min Mat Matter Collected 471 | 160 . 29 282 Remotely . | . . . . Salvage Created 495 | . . . 495 Parts 31 | . . . 31 Haulers Intercepted . | . . . . Recyclers Shooed . | . . . . Parts Field Recycled . | . . . . Retrieved Matter . | . . . . Parts Self-Destructed . | . . . . Prevented . | . . . . Kills | -11 -10 -10 -9 ------- Run | Jun Mat Min Mat Combat Hostiles Destroyed 7 | . . . 7 Guns 6 | . . . 6 AOE 1 | . . . 1 Classes Destroyed 6 | . . . 6 Worker 2 | . . . 2 Builder 2 | . . . 2 Recycler 1 | . . . 1 Operator 1 | . . . 1 Grunt 5 | . . . 5 Sentry 2 | . . . 2 Best Kill Streak 3 | . . . 3 Combat Bots Only 2 | . . . 2 Max Kills in Single Turn 1 | . . . 1 Gunslinging . | . . . . Exploded 1 | . . . 1 Melee . | . . . . Uniques/NPCs Destroyed . | . . . . Combat | -11 -10 -10 -9 -------- Run | Jun Mat Min Mat Damage Taken 2024 | . . . 2024 Core 411 | . . . 411 Absorbed by Shields . | . . . . Redirected to Shielding 69 | . . . 69 Core Remaining (%) 100 | 100 . 100 . Volleys Fired 50 | . . . 50 Largest 2 | . . . 2 Hottest 110 | . . . 110 Shots Fired 85 | . . . 85 Gun 68 | . . . 68 Cannon 16 | . . . 16 Launcher . | . . . . Special 1 | . . . 1 Kinetic 34 | . . . 34 Thermal 13 | . . . 13 Explosive . | . . . . Electromagnetic 38 | . . . 38 Robot Hit Streak 10 | . . . 10 Robot Miss Streak 6 | . . . 6 Penetration Max . | . . . . Secondary Targets . | . . . . Shots Hit Robots 60 | . . . 60 Core Hits 28 | . . . 28 Critical Kills . | . . . . Critical Parts Destroyed . | . . . . Critical Strikes . | . . . . Melee Attacks . | . . . . Impact . | . . . . Slashing . | . . . . Piercing . | . . . . Sneak Attacks . | . . . . Combat Hostiles . | . . . . Follow-up Attacks . | . . . . Damage Inflicted 907 | . . . 907 Guns 674 | . . . 674 Cannons 196 | . . . 196 Explosions 37 | . . . 37 Melee . | . . . . Ramming . | . . . . Kinetic 339 | . . . 339 Thermal 148 | . . . 148 Explosive . | . . . . Electromagnetic 420 | . . . 420 Impact . | . . . . Slashing . | . . . . Piercing . | . . . . Highest Corruption . | . . . . Average Corruption . | . . . . Corruption Purged . | . . . . Corruption Blocked . | . . . . Overload Shots . | . . . . Overflow Damage 87 | . . . 87 Projectiles . | . . . . Explosions 87 | . . . 87 Melee . | . . . . Knockbacks 3 | . . . 3 Impact . | . . . . Kinetic 3 | . . . 3 Secondary . | . . . . Self-Inflicted Damage 206 | . . . 206 Shots 3 | . . . 3 Rammed . | . . . . Targets Rammed . | . . . . Kicked . | . . . . Crushed . | . . . . Highest Temperature 454 | . . . 454 Average Temperature 120 | . . . 120 Received Heat Transfer 843 | . . . 843 Effects 2 | . . . 2 Energy Bleed 1 | . . . 1 Interference 1 | . . . 1 Siege Activations . | . . . . Robots Corrupted . | . . . . Combat Hostiles . | . . . . Parts Fried 1 | . . . 1 Impact Corruptions . | . . . . Robots Melted . | . . . . Combat Hostiles . | . . . . Parts Melted . | . . . . Heat Transferred 309 | . . . 309 Parts Sabotaged . | . . . . Parts Stolen . | . . . . Parts Stripped . | . . . . Power Chain Reactions 1 | . . . 1 Missiles Intercepted . | . . . . Alert | -11 -10 -10 -9 ------- Run | Jun Mat Min Mat Peak Influence 115 | . 2 . 115 Initial . | . . . . Average 39 | . . . 55 Maximum Alert Level . | . . . . Low Security (%) 100 | 100 100 100 100 Level 1 . | . . . . Level 2 . | . . . . Level 3 . | . . . . Level 4 . | . . . . Level 5 . | . . . . High Security . | . . . . Max Security . | . . . . Squads Dispatched 2 | . . . 2 Investigation . | . . . . Extermination . | . . . . Reinforcement 2 | . . . 2 Assault . | . . . . Garrison . | . . . . Intercept . | . . . . Searches Triggered . | . . . . Construction Impeded . | . . . . Haulers Reinforced . | . . . . Active Scanning Responses . | . . . . Cargo Convoy Interrupts . | . . . . Stealth | -11 -10 -10 -9 --------- Run | Jun Mat Min Mat Distress Signals . | . . . . Communications Jammed . | . . . . Distress Signals . | . . . . Times Spotted 13 | . . . 13 Peak Tracking Total 5 | . . . 5 Tactical Retreats . | . . . . Traps | -11 -10 -10 -9 ------- Run | Jun Mat Min Mat Traps Triggered . | . . . . Indirectly . | . . . . Trap Hack Attempts . | . . . . Triggered . | . . . . Disarmed . | . . . . Reprogrammed . | . . . . Reused . | . . . . Traps Extracted . | . . . . Installed . | . . . . Triggered . | . . . . Machines | -11 -10 -10 -9 ---------- Run | Jun Mat Min Mat Machines Disabled 3 | . . . 3 Max in Single Turn 3 | . . . 3 Machines Repaired . | . . . . Machines Sabotaged . | . . . . Overloaded Fab Kills . | . . . . Hacking | -11 -10 -10 -9 --------- Run | Jun Mat Min Mat Machines Accessed 3 | . 1 . 2 Terminals 2 | . 1 . 1 Fabricators . | . . . . Repair Stations . | . . . . Recycling Units 1 | . . . 1 Scanalyzers . | . . . . Garrison Access . | . . . . Total Hacks 9 | . 2 . 7 Successful 4 | . 2 . 2 Failed 5 | . . . 5 Catastrophic . | . . . . Database Lockouts . | . . . . Manual . | . . . . Terminals 5 | . 2 . 3 Fabricators . | . . . . Repair Stations . | . . . . Recycling Units 4 | . . . 4 Scanalyzers . | . . . . Garrison Access . | . . . . Terminal Hacks 3 | . 2 . 1 Record 2 | . 2 . . Zone Layout 1 | . . . 1 Fabricator Hacks . | . . . . Repair Station Hacks . | . . . . Recycling Unit Hacks 1 | . . . 1 Report Inventory 1 | . . . 1 Scanalyzer . | . . . . Garrison Access Hacks . | . . . . Unauthorized Hacks . | . . . . Terminals . | . . . . Fabricators . | . . . . Repair Stations . | . . . . Recycling Units . | . . . . Scanalyzers . | . . . . Garrison Access . | . . . . Data Cores Recovered . | . . . . Used . | . . . . Hacking Detections 3 | . 1 . 2 Full Trace Events 1 | . . . 1 Feedback Events . | . . . . Feedback Blocked . | . . . . Robot Schematics Acquired . | . . . . Robots Built . | . . . . Authchips . | . . . . Time . | . . . . Total Robot Build Rating . | . . . . Part Schematics Acquired . | . . . . Parts Built . | . . . . Authchips . | . . . . Time . | . . . . Total Part Build Rating . | . . . . Parts Repaired . | . . . . Time . | . . . . Parts Recycled . | . . . . Recycled Matter . | . . . . Retrieved Matter . | . . . . Retrieved Components . | . . . . Parts Scanalyzed . | . . . . Part Schematics Acquired . | . . . . Parts Damaged . | . . . . Bothacking | -11 -10 -10 -9 ------------ Run | Jun Mat Min Mat Used RIF Installer . | . . . . Robots Hacked . | . . . . Non-combat . | . . . . Combat . | . . . . Robot Hacks Applied . | . . . . Relay Couplers Released . | . . . . Fabnet Peak Effective % . | . . . . Robots Rewired . | . . . . Allies Hacked . | . . . . Hacks Repelled . | . . . . Allies | -11 -10 -10 -9 -------- Run | Jun Mat Min Mat Total Allies . | . . . . Largest Group . | . . . . Highest-Rated Group . | . . . . Highest-Rated Ally . | . . . . Total Orders . | . . . . Ally Attacks . | . . . . Total Damage . | . . . . Kills . | . . . . Allies Corrupted . | . . . . Allies Melted . | . . . . Intel | -11 -10 -10 -9 ------- Run | Jun Mat Min Mat Robot Analysis Total . | . . . . Derelict Logs Recovered . | . . . . Drone Launches . | . . . . Drone Recoveries . | . . . . Exploration | -11 -10 -10 -9 ------------- Run | Jun Mat Min Mat Turns Passed 1291 | 93 80 189 929 Spaces Moved 489 | 60 62 101 266 Core 11 | 11 . . . Treads 48 | . . . 48 Legs 430 | 49 62 101 218 Wheels . | . . . . Hover . | . . . . Flight . | . . . . Fastest Speed 50 | 50 120 120 240 Average Speed 206 | 117 120 180 256 Slowest Speed 320 | 150 120 260 320 Overloaded Moves . | . . . . Propulsion Burnouts . | . . . . Robots Hopped . | . . . . Cave-ins Triggered . | . . . . Exploration Rate (%) 16 | 4 13 24 23 Regions Visited 3 Branch Regions 1 Pre-discovered Areas . | . . . . Known Exits Taken . | . . . . Unknown Exits Taken 3 | 1 1 1 . Scrap Searched 1 | . . 1 . Spaces Dug . | . . . . Terrain Destroyed 55 | . . . 55 Melee . | . . . . Projectile 1 | . . . 1 AOE 54 | . . . 54 Terrain Rammed . | . . . . Walls Destroyed . | . . . . Machines Disabled . | . . . . Actions | -11 -10 -10 -9 --------- Run | Jun Mat Min Mat Total 685 | 82 68 108 427 Wait 85 | 5 1 4 75 Move 486 | 59 61 100 266 Hop . | . . . . Pick Up 36 | 12 3 3 18 Fast Attach 1 | . 1 . . Attach 19 | 6 . . 13 Detach . | . . . . Swap 3 | . . 1 2 Drop 5 | . 2 . 3 Fire 50 | . . . 50 Melee . | . . . . Ram . | . . . . Kick . | . . . . Crush . | . . . . Escape Stasis . | . . . . Rewire . | . . . . Trap . | . . . . Miscellaneous . | . . . . Route ------- -11/Junkyard -10/Materials -10/Mines -9/Materials History --------- Turn | Location | Event 34 | -11/Junkyard | Discovered new exit (range 15) 94 | -11/Junkyard | Entered Materials 130 | -10/Materials | Discovered new exit (range 16) 174 | -10/Materials | Entered Mines 202 | -10/Mines | Discovered new exit (range 6) 232 | -10/Mines | Met a Derelict bent on vengeance 307 | -10/Mines | Build established: Mutant 363 | -10/Mines | Entered Materials 363 | -9/Materials | Evolved 2 slots: Propulsion x2 492 | -9/Materials | Lost 3 parts (1p2w) 1219 | -9/Materials | Lost 3 parts (1n2w) 1270 | -9/Materials | Core integrity fell below 50% 1285 | -9/Materials | Core integrity fell below 20% 1292 | -9/Materials | Destroyed by G-34 Mercenary with Small Laser Last Messages --------------- 01281_ Critical hit (Burn: +37). 01282_ U-05 Engineer builds a Wall. 01282_ K-01 Serf collects debris. 01284_ R-06 Scavenger collects Wheel. 01284_ U-05 Engineer lays Concrete. 01284_ G-34 Mercenary misfires. 01284_ EM Pulse Gun destroyed. 01285_ U-05 Engineer lays Concrete. 01285_ Lgt. EM Pulse Cannon destroyed. 01287_ U-05 Engineer lays Concrete. 01287_ U-05 Engineer builds a Wall. 01287_ R-06 Scavenger collects Wheel. 01287_ K-01 Serf suffers critical hit (Burn). 01287_ K-01 Serf destroyed. 01288_ U-05 Engineer lays Concrete. 01288_ Plasma Cutter destroyed. 01289_ U-05 Engineer builds a Wall. 01291_ U-05 Engineer lays Concrete. 01291_ R-06 Scavenger collects Sml. Matter Pod. 01292_ U-05 Engineer builds a Wall. Map ----- +----------------------------------------------------+ | ?????????????????????????"" #?# #???#####?# # | | ????????????????????????? ### ##### ### # | | ?????????????????????????"" + # | | ?????????????????????????"" ###+##### ##### #### | | ?????????????????????????"" # ### ##???# #??? | | ????????????????????????? # """ #?# #????# #??? | | ?????????????????????????#### "R #?# #????# #??? | | ????????????????????????????# """ ###+###### #??? | | ????????????????????????????# ## ## ##?? | | ????????????????????????????# # """ # ### | | ????????????????????????????######### """ + | | ?????????????????????##?####????????# """ # ### | | ???????????????????### ## ###??????# #####?? | | ??????????????????? ;;; #??????# "T" #?????? | | ??????????????????### # #######?????########?????? | | ??????????????????# #u # #??????????????????? | | ?????????????????#### # #??????????????##### | | ?????????????????# #% u###??????????????# | | ?????????????????## #! # #??????????????# | | ?????????????????# #% ; #??????????????# | | ?????????????????# #* ;##??????????????#= | | ?????????????????# # !;#???????????????# ! | | ??????????????####""# % ##???????????????#!! # | | ?????????????##!!!!## g r ############?????##### | | ?????????????#! !#%Y%%%% ## #?????????? | | ?????????????# #t Y @ ## #?????????? | | ???????????### #/####g### #?????????# | | ????? # #????###### | | ????? + ###### | | ????? # """ """ + | | ?????? ## #######+### # """ ""??#### | | ??????????# ???# # #?""" "??????# ###### | | ??????????#?????# / ########?????# #??### | | ????????????????# #### # #?????# #??# | | ????????????????# """ #??# # ] ####### #??#* | | ????????????????# """ #??# # + #??# | | ????????????????# """ #??# # "Y" #### #??# " | | ????????????????+ #??# # """ #??# #### " | | ????????????????# """ #??# # #??# + " | | ?????????????????? """ #??# ####+###??# #### " | | ?????????????????????"" #??# ### ##### #??# | | ?????????????????????? #??# #??### | | ??????????????????????/#???##### %#####+######??? | | ?????????????????????? ?????#####/##### #??? | | ?????????????????????? ?????# ]]]/% [ #??? | | ?????????????????????? ?????# ]]]#* !! #??? | | ?????????????????????? ?????# [ ]]]# ! #??? | | ?????????????????????? ?????# #! #??? | | ?????????????????????? ?????###################??? | | ?????????????????????????????????????????????????? | +----------------------------------------------------+ Best States ------------- Heat Dissipation 28 Energy Generation 14 Energy Capacity 275 Matter Stores 300 Matter Capacity 300 Sight Range 16 Terrain Scan Density 10 Power Shielding 66 Evasion (%) 55 Recoil Reduction 2 Salvage Targeting 1 Item Schematics ----------------- None Robot Schematics ------------------ None Fabricated ------------ Nothing Alien Tech Used ----------------- None Achievements -------------- None Challenges ------------ None Game ------ Seed ArcVortexTerrabomb Manual? 0 Play Time 00:36:36 Cumulative 22.0 hours Start 2023.03.20 @ 22:43:26 End 2023.03.20 @ 23:30:26 Sessions 1 Manual Loads 0 Difficulty Rogue Special Mode None Game No. 15 Rogue 15 Adventurer 0 Explorer 0 Win Type - Total 0 Types 0/0/0/0/0/0/0/0/0 Lore% 10 Gallery% 20 Achievement% 15 Wizard Run 0 Options --------- ASCII 0 Keyboard 0 Movement Mouse Keybinds 0 Fullscreen 2 Font 18/SmallcapsGlow Map View 76x50 Tactical HUD 1 Map Filters NONE Filters NONE Steam 1 RUN: 93c57c68-17f4-4265-b853-4b1aa6ea30cb